[Event "Titled Tuesday Blitz August 15 Early 2023"]
[White "Petkov, Momchil"]
[Black "Chyngyz, Sultai"]
[WhiteFideId "2921642"]
[BlackFideId "13803158"]
[WhiteElo "2768"]
[BlackElo "2434"]
[Result "1-0"]
[Round "5"]
[TimeControl "180+1"]
[Date "2023.08.15"]
[WhiteClock "0:00:21"]
[BlackClock "0:00:27"]
[Board "58"]

1. d4 {[%clk 0:02:55]}  Nf6 {[%clk 0:02:59]} 2. Nf3 {[%clk 0:02:53]}  e6 {[%clk 0:03:00]} 3. Bf4 {[%clk 0:02:53]}  c5 {[%clk 0:03:00]} 4. e3 {[%clk 0:02:54]}  d5 {[%clk 0:03:00]} 5. c3 {[%clk 0:02:52]}  Nc6 {[%clk 0:03:00]} 6. Nbd2 {[%clk 0:02:52]}  Be7 {[%clk 0:02:58]} 7. Ne5 {[%clk 0:02:52]}  O-O {[%clk 0:02:58]} 8. Bd3 {[%clk 0:02:51]}  h6 {[%clk 0:02:51]} 9. O-O {[%clk 0:02:42]}  Bd6 {[%clk 0:02:45]} 10. Bg3 {[%clk 0:02:32]}  Qc7 {[%clk 0:02:39]} 11. f4 {[%clk 0:02:32]}  cxd4 {[%clk 0:02:35]} 12. exd4 {[%clk 0:02:31]}  a6 {[%clk 0:02:33]} 13. Bh4 {[%clk 0:02:31]}  Nd7 {[%clk 0:02:31]} 14. Qh5 {[%clk 0:02:19]}  b5 {[%clk 0:02:24]} 15. a3 {[%clk 0:02:19]}  Ne7 {[%clk 0:02:13]} 16. Rf3 {[%clk 0:02:05]}  f6 {[%clk 0:01:39]} 17. Rg3 {[%clk 0:01:58]}  Nxe5 {[%clk 0:01:10]} 18. fxe5 {[%clk 0:01:47]}  fxe5 {[%clk 0:01:10]} 19. dxe5 {[%clk 0:00:47]}  Bc5+ {[%clk 0:00:59]} 20. Kh1 {[%clk 0:00:47]}  Nf5 {[%clk 0:01:00]} 21. Bxf5 {[%clk 0:00:41]}  Rxf5 {[%clk 0:00:59]} 22. Qxh6 {[%clk 0:00:42]}  Qxe5 {[%clk 0:00:58]} 23. Qg6 {[%clk 0:00:34]}  Bd7 {[%clk 0:00:55]} 24. Nf3 {[%clk 0:00:34]}  Rxf3 {[%clk 0:00:52]} 25. Rxf3 {[%clk 0:00:33]}  Be8 {[%clk 0:00:49]} 26. Qg5 {[%clk 0:00:29]}  Qxg5 {[%clk 0:00:49]} 27. Bxg5 {[%clk 0:00:30]}  Bg6 {[%clk 0:00:48]} 28. Bf4 {[%clk 0:00:26]}  Be4 {[%clk 0:00:47]} 29. Rff1 {[%clk 0:00:27]}  Rf8 {[%clk 0:00:46]} 30. Be5 {[%clk 0:00:26]}  Bf5 {[%clk 0:00:37]} 31. h3 {[%clk 0:00:26]}  Be4 {[%clk 0:00:26]} 32. Rxf8+ {[%clk 0:00:25]}  Kxf8 {[%clk 0:00:27]} 33. Rf1+ {[%clk 0:00:25]}  Bf5 {[%clk 0:00:28]} 34. g4 {[%clk 0:00:25]}  g6 {[%clk 0:00:28]} 35. Kg2 {[%clk 0:00:24]}  Ke7 {[%clk 0:00:27]} 36. gxf5 {[%clk 0:00:24]}  exf5 {[%clk 0:00:27]} 37. Re1 {[%clk 0:00:24]}  Kf7 {[%clk 0:00:28]} 38. Bd4 {[%clk 0:00:24]}  Bd6 {[%clk 0:00:28]} 39. Be5 {[%clk 0:00:24]}  Bc5 {[%clk 0:00:29]} 40. b4 {[%clk 0:00:24]}  Be7 {[%clk 0:00:29]} 41. Bd4 {[%clk 0:00:22]}  Bh4 {[%clk 0:00:29]} 42. Ra1 {[%clk 0:00:22]}  g5 {[%clk 0:00:26]} 43. a4 {[%clk 0:00:22]}  f4 {[%clk 0:00:26]} 44. axb5 {[%clk 0:00:22]}  axb5 {[%clk 0:00:27]} 45. Ra5 {[%clk 0:00:23]}  Kg6 {[%clk 0:00:27]} 46. Rxb5 {[%clk 0:00:22]}  Kf5 {[%clk 0:00:28]} 47. Kf3 {[%clk 0:00:22]}  Ke6 {[%clk 0:00:27]} 48. Rb6+ {[%clk 0:00:22]}  Kf5 {[%clk 0:00:27]} 49. Rf6# {[%clk 0:00:21]} 1-0


[Site "https://www.chess.com"]

[Event "Titled Tuesday Blitz August 15 Early 2023"]
[White "Hambleton, Aman"]
[Black "slimshady"]
[WhiteFideId "2606577"]
[WhiteElo "2763"]
[BlackElo "2298"]
[Result "1-0"]
[Round "5"]
[TimeControl "180+1"]
[Date "2023.08.15"]
[WhiteClock "0:00:06"]
[BlackClock "0:01:29"]
[Board "60"]

1. d4 {[%clk 0:02:59]}  Nf6 {[%clk 0:02:57]} 2. c4 {[%clk 0:02:36]}  e6 {[%clk 0:02:56]} 3. Nc3 {[%clk 0:02:35]}  d5 {[%clk 0:02:56]} 4. cxd5 {[%clk 0:02:35]}  exd5 {[%clk 0:02:57]} 5. Bg5 {[%clk 0:02:35]}  Bb4 {[%clk 0:02:56]} 6. e3 {[%clk 0:02:34]}  O-O {[%clk 0:02:54]} 7. Bd3 {[%clk 0:02:16]}  h6 {[%clk 0:02:50]} 8. Bh4 {[%clk 0:02:16]}  Be6 {[%clk 0:02:49]} 9. Ne2 {[%clk 0:02:07]}  Nbd7 {[%clk 0:02:49]} 10. a3 {[%clk 0:01:36]}  Be7 {[%clk 0:02:41]} 11. O-O {[%clk 0:01:32]}  c5 {[%clk 0:02:38]} 12. dxc5 {[%clk 0:01:25]}  Nxc5 {[%clk 0:02:39]} 13. Bc2 {[%clk 0:01:25]}  Nce4 {[%clk 0:02:38]} 14. Rc1 {[%clk 0:01:02]}  Rc8 {[%clk 0:02:16]} 15. Bxe4 {[%clk 0:00:27]}  dxe4 {[%clk 0:02:05]} 16. Qxd8 {[%clk 0:00:23]}  Rfxd8 {[%clk 0:02:04]} 17. Nd4 {[%clk 0:00:19]}  Bc4 {[%clk 0:02:03]} 18. Rfd1 {[%clk 0:00:11]}  g5 {[%clk 0:02:03]} 19. Nf5 {[%clk 0:00:05]}  Bf8 {[%clk 0:02:01]} 20. Bg3 {[%clk 0:00:05]}  Bd3 {[%clk 0:01:57]} 21. h4 {[%clk 0:00:03]}  Nh5 {[%clk 0:01:56]} 22. hxg5 {[%clk 0:00:03]}  hxg5 {[%clk 0:01:54]} 23. Bh2 {[%clk 0:00:03]}  Ng7 {[%clk 0:01:53]} 24. Ng3 {[%clk 0:00:03]}  f5 {[%clk 0:01:53]} 25. Nge2 {[%clk 0:00:02]}  Bd6 {[%clk 0:01:52]} 26. Bxd6 {[%clk 0:00:03]}  Rxd6 {[%clk 0:01:52]} 27. Nd4 {[%clk 0:00:03]}  Rh6 {[%clk 0:01:49]} 28. f3 {[%clk 0:00:02]}  Kf7 {[%clk 0:01:48]} 29. fxe4 {[%clk 0:00:02]}  fxe4 {[%clk 0:01:49]} 30. Nd5 {[%clk 0:00:01]}  Rch8 {[%clk 0:01:48]} 31. Rc7+ {[%clk 0:00:02]}  Kg6 {[%clk 0:01:47]} 32. Rdc1 {[%clk 0:00:02]}  Rh1+ {[%clk 0:01:46]} 33. Kf2 {[%clk 0:00:02]}  Rf8+ {[%clk 0:01:44]} 34. Nf4+ {[%clk 0:00:03]}  gxf4 {[%clk 0:01:42]} 35. Rxh1 {[%clk 0:00:03]}  fxe3+ {[%clk 0:01:37]} 36. Kxe3 {[%clk 0:00:04]}  Rf7 {[%clk 0:01:36]} 37. Rxf7 {[%clk 0:00:04]}  Kxf7 {[%clk 0:01:37]} 38. g4 {[%clk 0:00:04]}  Kg6 {[%clk 0:01:37]} 39. Rc1 {[%clk 0:00:04]}  Kg5 {[%clk 0:01:37]} 40. Rc7 {[%clk 0:00:04]}  Ne8 {[%clk 0:01:38]} 41. Rxb7 {[%clk 0:00:04]}  Nf6 {[%clk 0:01:38]} 42. Rxa7 {[%clk 0:00:04]}  Nxg4+ {[%clk 0:01:39]} 43. Kd2 {[%clk 0:00:04]}  Kf4 {[%clk 0:01:40]} 44. Rf7+ {[%clk 0:00:03]}  Ke5 {[%clk 0:01:40]} 45. Nc2 {[%clk 0:00:02]}  Bc4 {[%clk 0:01:39]} 46. Re7+ {[%clk 0:00:02]}  Kf4 {[%clk 0:01:38]} 47. Re8 {[%clk 0:00:01]}  Ne5 {[%clk 0:01:37]} 48. Rxe5 {[%clk 0:00:01]}  Kxe5 {[%clk 0:01:37]} 49. Ne3 {[%clk 0:00:02]}  Ba6 {[%clk 0:01:37]} 50. Kc3 {[%clk 0:00:03]}  Kf4 {[%clk 0:01:37]} 51. Kd4 {[%clk 0:00:03]}  Kf3 {[%clk 0:01:33]} 52. a4 {[%clk 0:00:03]}  Ke2 {[%clk 0:01:33]} 53. b4 {[%clk 0:00:03]}  Kd2 {[%clk 0:01:34]} 54. b5 {[%clk 0:00:04]}  Bb7 {[%clk 0:01:34]} 55. a5 {[%clk 0:00:04]}  Ke2 {[%clk 0:01:34]} 56. a6 {[%clk 0:00:04]}  Bc8 {[%clk 0:01:33]} 57. Nc4 {[%clk 0:00:05]}  Kf3 {[%clk 0:01:32]} 58. Kc5 {[%clk 0:00:03]}  e3 {[%clk 0:01:32]} 59. Nxe3 {[%clk 0:00:03]}  Kxe3 {[%clk 0:01:33]} 60. Kd6 {[%clk 0:00:03]}  Kd4 {[%clk 0:01:33]} 61. Kc7 {[%clk 0:00:03]}  Bg4 {[%clk 0:01:33]} 62. b6 {[%clk 0:00:04]}  Be2 {[%clk 0:01:32]} 63. a7 {[%clk 0:00:04]}  Bf3 {[%clk 0:01:32]} 64. b7 {[%clk 0:00:05]}  Bxb7 {[%clk 0:01:29]} 65. Kxb7 {[%clk 0:00:06]} 1-0


[Site "https://www.chess.com"]

[Event "Titled Tuesday Blitz August 15 Early 2023"]
[White "Badmatsyrenov, Oleg"]
[Black "EvgenyBurmakin"]
[WhiteFideId "24115762"]
[WhiteElo "2750"]
[BlackElo "2273"]
[Result "1-0"]
[Round "5"]
[TimeControl "180+1"]
[Date "2023.08.15"]
[WhiteClock "0:00:12"]
[BlackClock "0:00:00"]
[Board "61"]

1. e4 {[%clk 0:02:52]}  c5 {[%clk 0:02:59]} 2. Nf3 {[%clk 0:02:52]}  d6 {[%clk 0:02:59]} 3. d4 {[%clk 0:02:52]}  cxd4 {[%clk 0:03:00]} 4. Nxd4 {[%clk 0:02:53]}  Nf6 {[%clk 0:03:00]} 5. Nc3 {[%clk 0:02:53]}  a6 {[%clk 0:03:01]} 6. f4 {[%clk 0:02:54]}  e6 {[%clk 0:03:01]} 7. g4 {[%clk 0:02:53]}  Qc7 {[%clk 0:02:38]} 8. g5 {[%clk 0:02:53]}  Nfd7 {[%clk 0:02:37]} 9. Be3 {[%clk 0:02:54]}  b5 {[%clk 0:02:32]} 10. Bg2 {[%clk 0:02:53]}  Bb7 {[%clk 0:02:32]} 11. O-O {[%clk 0:02:53]}  Be7 {[%clk 0:02:24]} 12. f5 {[%clk 0:02:44]}  e5 {[%clk 0:02:11]} 13. Nde2 {[%clk 0:02:34]}  f6 {[%clk 0:01:24]} 14. h4 {[%clk 0:02:26]}  b4 {[%clk 0:01:22]} 15. Nd5 {[%clk 0:02:26]}  Bxd5 {[%clk 0:01:22]} 16. Qxd5 {[%clk 0:02:27]}  Qc6 {[%clk 0:01:19]} 17. Qb3 {[%clk 0:02:17]}  a5 {[%clk 0:01:03]} 18. a3 {[%clk 0:02:16]}  Na6 {[%clk 0:00:44]} 19. axb4 {[%clk 0:02:14]}  Nxb4 {[%clk 0:00:43]} 20. Nc3 {[%clk 0:02:11]}  Nc5 {[%clk 0:00:34]} 21. Bxc5 {[%clk 0:02:05]}  Qxc5+ {[%clk 0:00:33]} 22. Kh1 {[%clk 0:02:02]}  d5 {[%clk 0:00:20]} 23. exd5 {[%clk 0:01:58]}  Bd6 {[%clk 0:00:20]} 24. Ne4 {[%clk 0:01:57]}  Qc7 {[%clk 0:00:19]} 25. gxf6 {[%clk 0:01:58]}  O-O {[%clk 0:00:17]} 26. fxg7 {[%clk 0:01:54]}  Kxg7 {[%clk 0:00:16]} 27. c4 {[%clk 0:01:36]}  Kh8 {[%clk 0:00:15]} 28. c5 {[%clk 0:01:36]}  Bxc5 {[%clk 0:00:12]} 29. Rac1 {[%clk 0:01:37]}  Na6 {[%clk 0:00:10]} 30. Nxc5 {[%clk 0:01:31]}  Nxc5 {[%clk 0:00:11]} 31. Qe3 {[%clk 0:01:31]}  Rac8 {[%clk 0:00:10]} 32. f6 {[%clk 0:01:11]}  Qd6 {[%clk 0:00:08]} 33. Qg5 {[%clk 0:01:01]}  Rc7 {[%clk 0:00:08]} 34. Rc3 {[%clk 0:01:01]}  Rcf7 {[%clk 0:00:07]} 35. h5 {[%clk 0:00:43]}  e4 {[%clk 0:00:06]} 36. h6 {[%clk 0:00:39]}  Nd7 {[%clk 0:00:04]} 37. Rc6 {[%clk 0:00:18]}  Qe5 {[%clk 0:00:04]} 38. Qxe5 {[%clk 0:00:18]}  Nxe5 {[%clk 0:00:05]} 39. Re6 {[%clk 0:00:19]}  Ng4 {[%clk 0:00:05]} 40. Bxe4 {[%clk 0:00:18]}  Ne3 {[%clk 0:00:03]} 41. Rf4 {[%clk 0:00:13]}  Nc4 {[%clk 0:00:02]} 42. d6 {[%clk 0:00:11]}  Nxb2 {[%clk 0:00:02]} 43. Re7 {[%clk 0:00:12]}  a4 {[%clk 0:00:01]} 44. d7 {[%clk 0:00:12]}  a3 {[%clk 0:00:00]} 45. Rxf7 {[%clk 0:00:12]} 1-0


[Site "https://www.chess.com"]

[Event "Titled Tuesday Blitz August 15 Early 2023"]
[White "Grischuk, Alexander"]
[Black "Mendez Fortes, Eduardo Jesus"]
[WhiteFideId "4126025"]
[BlackFideId "3502376"]
[WhiteElo "3037"]
[BlackElo "2611"]
[Result "1-0"]
[Round "5"]
[TimeControl "180+1"]
[Date "2023.08.15"]
[WhiteClock "0:00:05"]
[BlackClock "0:00:08"]
[Board "62"]

1. Nf3 {[%clk 0:03:00]}  d5 {[%clk 0:02:59]} 2. g3 {[%clk 0:03:01]}  Nf6 {[%clk 0:02:59]} 3. Bg2 {[%clk 0:03:01]}  e6 {[%clk 0:03:00]} 4. O-O {[%clk 0:03:01]}  Be7 {[%clk 0:02:57]} 5. c4 {[%clk 0:03:01]}  dxc4 {[%clk 0:02:55]} 6. Na3 {[%clk 0:02:57]}  Bxa3 {[%clk 0:02:51]} 7. bxa3 {[%clk 0:02:53]}  Nbd7 {[%clk 0:02:48]} 8. Bb2 {[%clk 0:02:52]}  Nb6 {[%clk 0:02:46]} 9. Ne5 {[%clk 0:02:43]}  O-O {[%clk 0:02:45]} 10. Rc1 {[%clk 0:02:43]}  c6 {[%clk 0:02:37]} 11. Nxc4 {[%clk 0:02:37]}  Nxc4 {[%clk 0:02:35]} 12. Rxc4 {[%clk 0:02:37]}  Qe7 {[%clk 0:02:33]} 13. f4 {[%clk 0:02:32]}  Nd7 {[%clk 0:02:31]} 14. Qc2 {[%clk 0:02:30]}  Nb6 {[%clk 0:02:24]} 15. Rc5 {[%clk 0:02:19]}  Bd7 {[%clk 0:02:21]} 16. Rh5 {[%clk 0:02:08]}  g6 {[%clk 0:02:16]} 17. Ra5 {[%clk 0:01:57]}  f6 {[%clk 0:02:00]} 18. h4 {[%clk 0:01:46]}  Rfd8 {[%clk 0:01:47]} 19. g4 {[%clk 0:01:37]}  Be8 {[%clk 0:01:40]} 20. g5 {[%clk 0:01:37]}  Nd5 {[%clk 0:01:27]} 21. e4 {[%clk 0:01:20]}  Qc7 {[%clk 0:01:20]} 22. Rxd5 {[%clk 0:01:10]}  exd5 {[%clk 0:01:19]} 23. exd5 {[%clk 0:01:03]}  Qb6+ {[%clk 0:01:05]} 24. Kh2 {[%clk 0:01:03]}  cxd5 {[%clk 0:00:48]} 25. Bxf6 {[%clk 0:01:02]}  Rd7 {[%clk 0:00:45]} 26. Qd3 {[%clk 0:00:53]}  Bf7 {[%clk 0:00:43]} 27. Bd4 {[%clk 0:00:45]}  Qd6 {[%clk 0:00:38]} 28. Be5 {[%clk 0:00:45]}  Qc5 {[%clk 0:00:37]} 29. Qh3 {[%clk 0:00:43]}  Re7 {[%clk 0:00:34]} 30. d4 {[%clk 0:00:41]}  Qc4 {[%clk 0:00:32]} 31. f5 {[%clk 0:00:37]}  Qxa2 {[%clk 0:00:31]} 32. Qf3 {[%clk 0:00:30]}  Qc2 {[%clk 0:00:17]} 33. fxg6 {[%clk 0:00:26]}  Qxg6 {[%clk 0:00:18]} 34. Qg3 {[%clk 0:00:25]}  Be6 {[%clk 0:00:18]} 35. Rf6 {[%clk 0:00:24]}  Qc2 {[%clk 0:00:18]} 36. g6 {[%clk 0:00:23]}  hxg6 {[%clk 0:00:16]} 37. Rxg6+ {[%clk 0:00:23]}  Kf7 {[%clk 0:00:16]} 38. Rf6+ {[%clk 0:00:10]}  Ke8 {[%clk 0:00:16]} 39. Bd6 {[%clk 0:00:09]}  Qh7 {[%clk 0:00:12]} 40. Bxe7 {[%clk 0:00:08]}  Qxe7 {[%clk 0:00:13]} 41. Qg6+ {[%clk 0:00:04]}  Kd7 {[%clk 0:00:13]} 42. Rxe6 {[%clk 0:00:05]}  Qxe6 {[%clk 0:00:08]} 43. Bh3 {[%clk 0:00:05]} 1-0


[Site "https://www.chess.com"]

[Event "Titled Tuesday Blitz August 15 Early 2023"]
[White "Andreikin, Dmitry"]
[Black "Belov, Alexei"]
[WhiteFideId "4158814"]
[BlackFideId "4128206"]
[WhiteElo "2989"]
[BlackElo "2610"]
[Result "1-0"]
[Round "5"]
[TimeControl "180+1"]
[Date "2023.08.15"]
[WhiteClock "0:01:10"]
[BlackClock "0:00:32"]
[Board "63"]

1. d4 {[%clk 0:02:57]}  d5 {[%clk 0:02:59]} 2. Nf3 {[%clk 0:02:55]}  e6 {[%clk 0:02:59]} 3. c4 {[%clk 0:02:55]}  Nf6 {[%clk 0:02:59]} 4. Nc3 {[%clk 0:02:53]}  Be7 {[%clk 0:02:59]} 5. e3 {[%clk 0:02:46]}  O-O {[%clk 0:02:59]} 6. a3 {[%clk 0:02:46]}  Nbd7 {[%clk 0:02:59]} 7. b4 {[%clk 0:02:45]}  dxc4 {[%clk 0:02:52]} 8. Bxc4 {[%clk 0:02:45]}  b6 {[%clk 0:02:52]} 9. O-O {[%clk 0:02:43]}  Bb7 {[%clk 0:02:52]} 10. Qe2 {[%clk 0:02:36]}  c5 {[%clk 0:02:47]} 11. dxc5 {[%clk 0:02:30]}  bxc5 {[%clk 0:02:47]} 12. b5 {[%clk 0:02:31]}  Nb6 {[%clk 0:02:40]} 13. Rd1 {[%clk 0:02:30]}  Qc7 {[%clk 0:02:37]} 14. Bd3 {[%clk 0:02:25]}  c4 {[%clk 0:02:18]} 15. Bc2 {[%clk 0:02:20]}  Rfd8 {[%clk 0:02:06]} 16. Bb2 {[%clk 0:02:13]}  Qc5 {[%clk 0:02:02]} 17. a4 {[%clk 0:02:02]}  a5 {[%clk 0:01:58]} 18. Ba3 {[%clk 0:01:44]}  Qc7 {[%clk 0:01:57]} 19. Bxe7 {[%clk 0:01:43]}  Qxe7 {[%clk 0:01:57]} 20. e4 {[%clk 0:01:43]}  e5 {[%clk 0:01:46]} 21. Qe3 {[%clk 0:01:41]}  Qe6 {[%clk 0:01:33]} 22. Ng5 {[%clk 0:01:32]}  Rxd1+ {[%clk 0:01:01]} 23. Rxd1 {[%clk 0:01:31]}  Ng4 {[%clk 0:01:00]} 24. Qc5 {[%clk 0:01:11]}  Rc8 {[%clk 0:00:32]} 25. Nxe6 {[%clk 0:01:10]} 1-0


[Site "https://www.chess.com"]

[Event "Titled Tuesday Blitz August 15 Early 2023"]
[White "Kramnik, Vladimir"]
[Black "Pert, Richard G"]
[WhiteFideId "4101588"]
[BlackFideId "404748"]
[WhiteElo "2986"]
[BlackElo "2601"]
[Result "0-1"]
[Round "5"]
[TimeControl "180+1"]
[Date "2023.08.15"]
[WhiteClock "0:00:00"]
[BlackClock "0:00:33"]
[Board "64"]

1. c4 {[%clk 0:02:29]}  e6 {[%clk 0:02:58]} 2. Nc3 {[%clk 0:02:28]}  d5 {[%clk 0:02:57]} 3. d4 {[%clk 0:02:27]}  c5 {[%clk 0:02:56]} 4. cxd5 {[%clk 0:02:27]}  cxd4 {[%clk 0:02:56]} 5. Qa4+ {[%clk 0:02:22]}  Bd7 {[%clk 0:02:56]} 6. Qxd4 {[%clk 0:02:22]}  exd5 {[%clk 0:02:55]} 7. Qxd5 {[%clk 0:02:22]}  Nf6 {[%clk 0:02:51]} 8. Qd1 {[%clk 0:02:22]}  Nc6 {[%clk 0:02:50]} 9. Nf3 {[%clk 0:02:23]}  Bc5 {[%clk 0:02:47]} 10. e3 {[%clk 0:02:22]}  Qe7 {[%clk 0:02:45]} 11. Be2 {[%clk 0:02:21]}  O-O-O {[%clk 0:02:45]} 12. Bd2 {[%clk 0:02:21]}  Kb8 {[%clk 0:02:45]} 13. Rc1 {[%clk 0:02:15]}  g5 {[%clk 0:02:34]} 14. O-O {[%clk 0:02:08]}  g4 {[%clk 0:02:30]} 15. Nd4 {[%clk 0:01:56]}  h5 {[%clk 0:02:09]} 16. Na4 {[%clk 0:01:43]}  Bd6 {[%clk 0:02:06]} 17. Nb5 {[%clk 0:01:33]}  Be5 {[%clk 0:02:03]} 18. Nc5 {[%clk 0:01:29]}  Bc8 {[%clk 0:01:51]} 19. Qc2 {[%clk 0:01:23]}  h4 {[%clk 0:01:36]} 20. f4 {[%clk 0:01:13]}  Bd6 {[%clk 0:01:09]} 21. Nxd6 {[%clk 0:01:06]}  Rxd6 {[%clk 0:01:08]} 22. Bb5 {[%clk 0:00:26]}  g3 {[%clk 0:01:05]} 23. Bxc6 {[%clk 0:00:19]}  gxh2+ {[%clk 0:01:00]} 24. Kh1 {[%clk 0:00:19]}  Rxc6 {[%clk 0:01:00]} 25. Bb4 {[%clk 0:00:18]}  Qxe3 {[%clk 0:00:49]} 26. Na6+ {[%clk 0:00:18]}  bxa6 {[%clk 0:00:42]} 27. Qxc6 {[%clk 0:00:18]}  Bb7 {[%clk 0:00:42]} 28. Qd6+ {[%clk 0:00:10]}  Ka8 {[%clk 0:00:41]} 29. Qxf6 {[%clk 0:00:08]}  Bxg2+ {[%clk 0:00:34]} 30. Kxg2 {[%clk 0:00:07]}  h3+ {[%clk 0:00:34]} 31. Kxh2 {[%clk 0:00:00]}  Qe2+ {[%clk 0:00:33]} 0-1


[Site "https://www.chess.com"]

[Event "Titled Tuesday Blitz August 15 Early 2023"]
[White "Williams, Simon K"]
[Black "Guliyev, Namig"]
[WhiteFideId "404454"]
[BlackFideId "13400363"]
[WhiteElo "2548"]
[BlackElo "2797"]
[Result "0-1"]
[Round "5"]
[TimeControl "180+1"]
[Date "2023.08.15"]
[WhiteClock "0:00:13"]
[BlackClock "0:00:55"]
[Board "69"]

1. d4 {[%clk 0:03:00]}  d5 {[%clk 0:03:00]} 2. c4 {[%clk 0:02:55]}  dxc4 {[%clk 0:03:00]} 3. Nf3 {[%clk 0:02:52]}  a6 {[%clk 0:02:59]} 4. e4 {[%clk 0:02:46]}  b5 {[%clk 0:02:58]} 5. b3 {[%clk 0:02:45]}  Bb7 {[%clk 0:02:53]} 6. bxc4 {[%clk 0:02:40]}  Bxe4 {[%clk 0:02:51]} 7. cxb5 {[%clk 0:02:38]}  Nf6 {[%clk 0:02:52]} 8. Nc3 {[%clk 0:02:38]}  Bb7 {[%clk 0:02:51]} 9. Bc4 {[%clk 0:02:32]}  e6 {[%clk 0:02:50]} 10. O-O {[%clk 0:02:31]}  axb5 {[%clk 0:02:51]} 11. Bxb5+ {[%clk 0:02:30]}  Nbd7 {[%clk 0:02:51]} 12. Ne5 {[%clk 0:02:27]}  Bd6 {[%clk 0:02:51]} 13. Nc6 {[%clk 0:02:17]}  Qc8 {[%clk 0:02:44]} 14. a4 {[%clk 0:02:13]}  O-O {[%clk 0:02:43]} 15. Bg5 {[%clk 0:02:10]}  h6 {[%clk 0:02:41]} 16. Bh4 {[%clk 0:02:07]}  Kh8 {[%clk 0:02:35]} 17. Rc1 {[%clk 0:02:04]}  Re8 {[%clk 0:02:25]} 18. Re1 {[%clk 0:01:39]}  Ba6 {[%clk 0:02:25]} 19. Qf3 {[%clk 0:01:30]}  Bxb5 {[%clk 0:02:24]} 20. axb5 {[%clk 0:01:30]}  Ra3 {[%clk 0:02:21]} 21. Qe2 {[%clk 0:01:22]}  Qa8 {[%clk 0:02:18]} 22. Ne4 {[%clk 0:01:18]}  Nxe4 {[%clk 0:02:14]} 23. Qxe4 {[%clk 0:01:18]}  Nb6 {[%clk 0:02:04]} 24. Bg3 {[%clk 0:01:17]}  Bxg3 {[%clk 0:02:03]} 25. hxg3 {[%clk 0:01:17]}  Nd5 {[%clk 0:02:04]} 26. Ne5 {[%clk 0:01:10]}  Kg8 {[%clk 0:02:02]} 27. Nd3 {[%clk 0:00:44]}  Nc3 {[%clk 0:01:54]} 28. Qxa8 {[%clk 0:00:39]}  Rexa8 {[%clk 0:01:54]} 29. Ne5 {[%clk 0:00:22]}  Nxb5 {[%clk 0:01:53]} 30. Nf3 {[%clk 0:00:21]}  Nc3 {[%clk 0:01:46]} 31. Re3 {[%clk 0:00:21]}  Nd5 {[%clk 0:01:46]} 32. Rxa3 {[%clk 0:00:20]}  Rxa3 {[%clk 0:01:47]} 33. Kf1 {[%clk 0:00:20]}  g5 {[%clk 0:01:46]} 34. g4 {[%clk 0:00:20]}  Kg7 {[%clk 0:01:44]} 35. Ne5 {[%clk 0:00:21]}  f6 {[%clk 0:01:42]} 36. Nc4 {[%clk 0:00:20]}  Ra4 {[%clk 0:01:37]} 37. g3 {[%clk 0:00:20]}  Kg6 {[%clk 0:01:36]} 38. Ke2 {[%clk 0:00:20]}  Rb4 {[%clk 0:01:16]} 39. Kf3 {[%clk 0:00:20]}  Rb3+ {[%clk 0:01:14]} 40. Ne3 {[%clk 0:00:21]}  Rc3 {[%clk 0:01:10]} 41. Rb1 {[%clk 0:00:17]}  Rd3 {[%clk 0:00:54]} 42. Ke4 {[%clk 0:00:13]}  Rxe3+ {[%clk 0:00:55]} 0-1


[Site "https://www.chess.com"]

[Event "Titled Tuesday Blitz August 15 Early 2023"]
[White "Shcherbin, Matvei"]
[Black "Yelisieiev, Yevhenii"]
[WhiteFideId "24125164"]
[BlackFideId "14139642"]
[WhiteElo "2740"]
[BlackElo "2560"]
[Result "1-0"]
[Round "5"]
[TimeControl "180+1"]
[Date "2023.08.15"]
[WhiteClock "0:00:12"]
[BlackClock "0:00:04"]
[Board "70"]

1. e4 {[%clk 0:03:00]}  d6 {[%clk 0:03:00]} 2. d4 {[%clk 0:03:00]}  Nf6 {[%clk 0:03:00]} 3. Nc3 {[%clk 0:03:01]}  e5 {[%clk 0:03:00]} 4. Nf3 {[%clk 0:02:56]}  Nbd7 {[%clk 0:03:00]} 5. a4 {[%clk 0:02:54]}  Be7 {[%clk 0:03:00]} 6. Bc4 {[%clk 0:02:52]}  O-O {[%clk 0:02:59]} 7. O-O {[%clk 0:02:51]}  c6 {[%clk 0:03:00]} 8. h3 {[%clk 0:02:49]}  a5 {[%clk 0:02:59]} 9. Re1 {[%clk 0:02:50]}  Nb6 {[%clk 0:02:58]} 10. Bf1 {[%clk 0:02:49]}  exd4 {[%clk 0:02:58]} 11. Nxd4 {[%clk 0:02:49]}  d5 {[%clk 0:02:58]} 12. e5 {[%clk 0:02:48]}  Ne8 {[%clk 0:02:57]} 13. Bf4 {[%clk 0:02:37]}  g6 {[%clk 0:02:53]} 14. Bh6 {[%clk 0:02:11]}  Ng7 {[%clk 0:02:52]} 15. Qd2 {[%clk 0:02:12]}  Re8 {[%clk 0:02:44]} 16. Bxg7 {[%clk 0:02:10]}  Kxg7 {[%clk 0:02:44]} 17. Rad1 {[%clk 0:02:11]}  Bg5 {[%clk 0:02:41]} 18. f4 {[%clk 0:02:09]}  Bh4 {[%clk 0:02:41]} 19. Re3 {[%clk 0:02:10]}  Be7 {[%clk 0:02:01]} 20. Nb3 {[%clk 0:02:08]}  Bb4 {[%clk 0:01:59]} 21. Qf2 {[%clk 0:01:53]}  Qe7 {[%clk 0:01:45]} 22. g4 {[%clk 0:01:50]}  Nc4 {[%clk 0:01:43]} 23. Bxc4 {[%clk 0:01:46]}  dxc4 {[%clk 0:01:43]} 24. Nd4 {[%clk 0:01:47]}  Bc5 {[%clk 0:01:43]} 25. Ne4 {[%clk 0:01:46]}  Be6 {[%clk 0:01:39]} 26. f5 {[%clk 0:01:37]}  Bxf5 {[%clk 0:01:24]} 27. gxf5 {[%clk 0:01:32]}  Qxe5 {[%clk 0:01:24]} 28. c3 {[%clk 0:01:16]}  Kh8 {[%clk 0:01:14]} 29. Rde1 {[%clk 0:01:07]}  Bxd4 {[%clk 0:00:56]} 30. cxd4 {[%clk 0:01:08]}  Qxd4 {[%clk 0:00:56]} 31. fxg6 {[%clk 0:01:04]}  fxg6 {[%clk 0:00:55]} 32. Ng5 {[%clk 0:01:02]}  Rf8 {[%clk 0:00:33]} 33. Rf3 {[%clk 0:00:37]}  Qxf2+ {[%clk 0:00:28]} 34. Rxf2 {[%clk 0:00:38]}  Rxf2 {[%clk 0:00:25]} 35. Kxf2 {[%clk 0:00:39]}  b5 {[%clk 0:00:26]} 36. Re7 {[%clk 0:00:34]}  h6 {[%clk 0:00:26]} 37. Rh7+ {[%clk 0:00:31]}  Kg8 {[%clk 0:00:25]} 38. Rxh6 {[%clk 0:00:32]}  Kg7 {[%clk 0:00:23]} 39. Rh7+ {[%clk 0:00:33]}  Kf6 {[%clk 0:00:23]} 40. h4 {[%clk 0:00:29]}  bxa4 {[%clk 0:00:21]} 41. Rc7 {[%clk 0:00:29]}  Rb8 {[%clk 0:00:20]} 42. Rxc6+ {[%clk 0:00:29]}  Kf5 {[%clk 0:00:20]} 43. Rc5+ {[%clk 0:00:28]}  Kg4 {[%clk 0:00:20]} 44. Rxc4+ {[%clk 0:00:28]}  Kh5 {[%clk 0:00:21]} 45. Rxa4 {[%clk 0:00:20]}  Rxb2+ {[%clk 0:00:21]} 46. Kg3 {[%clk 0:00:20]}  Rb3+ {[%clk 0:00:21]} 47. Nf3 {[%clk 0:00:21]}  Rb5 {[%clk 0:00:20]} 48. Kf2 {[%clk 0:00:19]}  Rb2+ {[%clk 0:00:18]} 49. Kg3 {[%clk 0:00:18]}  Rb5 {[%clk 0:00:19]} 50. Ra3 {[%clk 0:00:18]}  Rc5 {[%clk 0:00:16]} 51. Ng5 {[%clk 0:00:17]}  Rc4 {[%clk 0:00:15]} 52. Rxa5 {[%clk 0:00:13]}  Rg4+ {[%clk 0:00:14]} 53. Kf2 {[%clk 0:00:13]}  Rf4+ {[%clk 0:00:04]} 54. Nf3+ {[%clk 0:00:11]}  Kg4 {[%clk 0:00:03]} 55. Rg5+ {[%clk 0:00:11]}  Kh3 {[%clk 0:00:04]} 56. Rg3# {[%clk 0:00:12]} 1-0


[Site "https://www.chess.com"]